bitfinex/quotes_ETHUSD_20260302
["timestamp","ask_amount","ask_price","bid_price","bid_amount"]
[1772482758791,2.40838601,2041.2,2040.5,0.001]
[1772482759289,1.931,2041.3,2040.5,3.63457406]
[1772482759487,1.22476974,2041.2,2040.5,0.001]
[1772482760266,3.15476974,2041.2,2040.5,0.001]
[1772482760596,1.22422995,2042.1,2040.5,0.469933]
[1772482760750,1.93,2042.0,2040.5,0.469933]
[1772482760950,0.46090563,2041.8,2040.5,0.001]
[1772482761585,1.2244698,2041.7,2040.5,0.001]
[1772482761892,0.46090563,2041.6,2040.5,0.001]
[1772482762088,2.86231803,2041.4,2040.8,0.001]
[1772482762389,2.86231803,2041.4,2040.5,0.001]
[1772482762390,2.86231803,2041.1,2040.5,0.001]
[1772482763455,2.86231803,2041.1,2040.3,0.001]
[1772482763456,0.46090563,2041.0,2040.3,0.001]
[1772482763677,1.6858554,2040.9,2040.3,0.001]
[1772482763886,1.6858554,2040.9,2040.0,0.001]
[1772482764092,2.4014124,2040.8,2040.0,0.001]
[1772482764268,2.38990563,2040.7,2040.0,0.001]
[1772482765088,0.46090563,2040.6,2040.0,0.001]
[1772482765285,0.46090563,2040.4,2039.2,1.22597061]
[1772482765495,1.929,2040.3,2039.2,1.22597061]
[1772482765795,1.22537006,2040.2,2038.9,0.468933]
[1772482766151,1.68627569,2040.2,2038.9,0.468933]
[1772482766355,0.46090563,2039.9,2038.7,0.3290911]
[1772482766595,0.46090563,2039.9,2038.5,0.468933]
[1772482767101,0.46090563,2039.6,2038.2,3.91777898]
[1772482767308,1.928,2039.5,2038.3,0.468933]
[1772482767590,1.22585074,2039.4,2038.2,3.91777898]
[1772482768150,1.22585074,2039.4,2038.2,1.22653367]
[1772482768151,1.928,2039.3,2038.2,1.22653367]
[1772482768355,1.22585074,2039.4,2038.2,1.22653367]
[1772482768583,1.928,2039.3,2038.2,1.69546667]
[1772482768974,1.22585074,2039.4,2038.2,1.69546667]
[1772482769201,1.928,2039.3,2038.2,1.69546667]
[1772482770698,1.22597096,2039.2,2038.2,1.69546667]
[1772482771822,1.22597096,2039.2,2037.9,0.001]
[1772482771823,0.46090563,2039.1,2037.9,0.001]
[1772482772190,0.46090563,2039.1,2037.9,1.22775217]
[1772482772422,0.46090563,2039.0,2037.9,0.001]
[1772482772694,1.68705698,2038.9,2037.9,0.001]
[1772482773215,0.46090563,2038.8,2037.9,0.001]
[1772482773398,1.927,2038.7,2037.9,0.001]
[1772482773598,0.46090563,2038.8,2037.9,0.001]
[1772482773802,1.22615135,2038.9,2037.9,0.001]
[1772482774109,4.90460542,2039.0,2037.9,0.001]
[1772482774110,1.22579063,2039.5,2038.1,0.468933]
[1772482774297,1.927,2039.2,2038.2,0.468933]
[1772482775022,1.927,2039.2,2038.3,1.69544528]
[1772482775023,1.22603109,2039.1,2038.3,1.69544528]
[1772482779009,1.22603109,2039.1,2038.1,7.53453724]
[1772482779010,0.46090563,2039.0,2038.1,0.001]
[1772482779190,1.22603109,2039.1,2037.9,0.001]
[1772482779191,0.46090563,2038.8,2037.9,0.001]
[1772482779519,1.68717727,2038.7,2037.9,0.001]
[1772482779693,1.924,2038.6,2037.9,0.001]
[1772482780345,1.68717727,2038.7,2037.9,0.001]
[1772482780518,1.923,2038.5,2037.9,0.001]
[1772482780811,1.923,2038.4,2037.9,0.001]
[1772482781519,1.923,2038.8,2037.9,0.469933]
[1772482781910,4.90508657,2038.9,2037.9,0.469933]
[1772482782110,1.923,2038.8,2037.9,0.469933]
[1772482782513,1.923,2038.8,2037.9,0.001]
[1772482783017,0.46090563,2038.8,2037.9,0.001]
[1772482783187,1.922,2038.7,2037.9,0.001]
[1772482783797,1.922,2038.9,2037.9,0.469933]
[1772482784092,1.922,2038.8,2037.9,0.469933]
[1772482784902,1.921,2038.9,2037.9,0.469933]
[1772482785410,1.22603109,2039.1,2037.9,0.469933]
[1772482785729,1.92,2039.1,2038.1,0.468933]
[1772482785892,1.92,2039.3,2038.3,0.468933]
[1772482786620,0.46090563,2039.3,2038.1,0.468933]
[1772482786923,1.92,2039.2,2038.1,0.468933]
[1772482787122,0.46090563,2039.3,2038.1,0.468933]
[1772482787123,1.92,2039.1,2038.1,0.468933]
[1772482787495,0.46090563,2039.3,2038.1,0.468933]
[1772482787797,3.14497096,2039.2,2038.3,0.47777894]
[1772482788294,1.22597096,2039.2,2038.3,0.47777894]
[1772482788821,4.9032871,2039.5,2038.3,0.47777894]
[1772482788996,6.8212871,2039.5,2038.3,0.47777894]
[1772482789517,4.9032871,2039.5,2038.3,0.47777894]
[1772482789724,6.8212871,2039.5,2038.3,0.47777894]
[1772482790303,0.48321023,2039.4,2038.3,1.22650332]
[1772482790629,0.48321023,2039.4,2038.1,1.70539029]
[1772482792525,1.22591085,2039.3,2038.1,1.70539029]
[1772482793023,0.48321023,2039.2,2038.1,1.70539029]
[1772482793226,0.48321023,2039.0,2037.9,0.001]
[1772482793823,0.48321023,2038.9,2037.9,0.001]
[1772482794244,0.48321023,2038.9,2037.9,1.22774573]
[1772482794408,1.22597096,2039.2,2037.9,0.47877894]
[1772482794723,1.22597096,2039.2,2038.2,0.47777894]
[1772482795135,1.70918119,2039.2,2037.9,0.47877894]
[1772482795824,1.70918119,2039.2,2038.0,0.47777894]
[1772482796002,1.22597096,2039.2,2038.0,0.47777894]
[1772482796418,1.22597096,2039.2,2038.0,1.7044574]
[1772482796612,3.56588893,2039.2,2038.0,1.7044574]
[1772482798524,1.917,2039.1,2038.0,1.70446785]
[1772482799914,1.22597096,2039.2,2038.1,0.47777894]
[1772482800328,3.14295432,2039.3,2038.2,0.47777894]
[1772482800617,3.14295432,2039.3,2038.4,0.47777894]
[1772482800816,3.14273053,2039.6,2038.5,0.47777894]
[1772482801019,3.14273053,2039.6,2038.6,0.47777894]
[1772482801838,1.917,2039.5,2038.6,0.47777894]
[1772482802463,0.002,2039.0,2038.3,1.70429122]
[1772482802738,1.918,2039.0,2038.3,0.47777894]
[1772482802941,0.002,2039.0,2038.3,1.70427801]
[1772482803119,1.22585074,2039.4,2038.6,0.47777894]
[1772482803120,1.916,2039.4,2038.6,0.47777894]
[1772482803736,1.916,2039.4,2038.3,1.70427801]
[1772482803921,1.916,2039.4,2038.4,0.47777894]
[1772482804332,1.22783137,2039.5,2038.4,0.47777894]
[1772482804536,1.22597096,2039.2,2038.5,1.22639195]
[1772482804731,1.22597096,2039.2,2038.4,1.70419383]
[1772482805036,1.22597096,2039.2,2038.2,0.001]
[1772482805037,5.07857426,2039.2,2038.2,0.001]
[1772482805353,0.48321023,2039.1,2038.2,0.001]
[1772482805520,0.48321023,2039.1,2038.2,1.22756818]
[1772482805725,0.48321023,2039.1,2038.2,0.001]
[1772482806654,3.14009122,2039.0,2038.2,0.001]
[1772482807265,0.48321023,2038.8,2038.2,0.001]
[1772482807466,0.48321023,2038.8,2037.6,0.001]
[1772482807467,0.48321023,2038.2,2037.6,0.001]
[1772482807769,3.36939307,2037.7,2037.0,0.001]
[1772482807936,5.71523741,2037.7,2037.0,0.001]
[1772482808133,5.93014686,2038.5,2037.0,1.22827483]
[1772482808134,1.914,2037.6,2037.0,1.22827483]
[1772482808445,0.48321023,2038.3,2037.0,1.2282902]
[1772482808643,1.22657246,2038.2,2037.0,0.001]
[1772482808832,1.914,2038.1,2037.0,0.47877894]
[1772482809026,1.22657246,2038.2,2037.0,0.47877894]
[1772482809027,3.14057246,2038.2,2037.0,0.47877894]
[1772482809257,5.38877771,2038.7,2037.0,0.47877894]
[1772482809258,1.22633179,2038.6,2037.0,0.47877894]
[1772482809461,2.39721023,2038.3,2037.0,0.47877894]
[1772482809655,0.48321023,2038.3,2037.0,0.47877894]
[1772482809858,1.914,2038.3,2037.0,0.47877894]
[1772482810668,1.22633179,2038.6,2037.2,0.47777894]
[1772482810960,3.13933179,2038.6,2037.2,0.47777894]
[1772482811165,1.913,2038.5,2037.2,0.47777894]
[1772482811329,1.913,2038.5,2037.1,1.22723479]
[1772482811330,0.48321023,2038.1,2037.0,0.001]
[1772482811530,0.48321023,2038.1,2037.0,1.22828928]
[1772482811731,3.37393822,2038.2,2037.0,0.001]
[1772482811732,0.48321023,2037.9,2037.0,0.001]
[1772482811952,0.48321023,2038.4,2037.0,1.22829302]
[1772482812156,0.48321023,2038.2,2037.0,1.22829302]
[1772482812543,1.912,2038.1,2037.0,1.22829302]
[1772482812942,3.13769283,2038.0,2037.0,0.001]
[1772482813148,1.911,2038.5,2037.0,0.47877894]
[1772482814759,0.48321023,2038.4,2037.0,0.47877894]
[1772482814968,1.70972251,2038.3,2037.1,1.22723479]
[1772482815144,0.48321023,2038.1,2037.0,0.001]
[1772482815339,0.48321023,2038.1,2037.0,1.22829381]
[1772482815762,1.909,2038.0,2037.1,0.47777894]
[1772482815963,1.909,2038.0,2037.2,0.001]
[1772482816440,1.909,2038.0,2036.7,0.48896521]
[1772482816441,0.49611079,2037.4,2036.2,4.91093086]
[1772482816768,0.49611079,2037.4,2036.7,0.001]
[1772482816946,3.13611431,2037.3,2036.7,0.001]
[1772482817562,1.22711431,2037.3,2036.7,0.001]
[1772482817752,1.909,2037.2,2036.7,0.001]
[1772482818067,1.22711431,2037.3,2036.7,0.001]
[1772482818275,1.909,2037.2,2036.7,0.001]
[1772482818857,1.22711431,2037.3,2036.7,0.001]
[1772482819061,1.22729504,2037.0,2036.7,0.001]
[1772482819654,1.91,2037.3,2036.7,0.001]
[1772482820042,5.38929105,2037.7,2036.7,0.001]
[1772482820240,1.91,2037.6,2036.7,0.001]
[1772482820468,4.90688641,2038.0,2036.7,0.4573892]
[1772482820661,1.909,2037.9,2036.7,0.4573892]
[1772482821038,1.909,2037.9,2036.7,1.68485831]
[1772482821039,1.22681322,2037.8,2036.7,1.68485831]
[1772482822449,0.48155647,2037.7,2036.7,0.001]
[1772482822972,3.85549469,2037.5,2036.0,4.91247723]
[1772482823271,1.22693364,2037.6,2036.0,4.91247723]
[1772482823272,3.37393822,2037.2,2036.0,0.001]
[1772482823478,0.48155647,2036.7,2036.0,0.001]
[1772482823844,1.909,2036.6,2036.0,0.001]
[1772482824268,0.48155647,2036.7,2036.0,0.001]
[1772482824490,1.909,2036.6,2036.0,0.001]
[1772482824643,5.70329258,2037.2,2036.0,0.001]
[1772482824848,0.065536,2037.3,2036.0,0.001]
[1772482824849,0.48155647,2037.0,2036.0,0.001]
[1772482825075,0.48155647,2036.8,2036.0,0.001]
[1772482825881,1.908,2036.7,2036.0,0.001]
[1772482826365,0.48155647,2036.6,2035.8,0.001]
[1772482826949,1.22759636,2036.5,2035.8,0.001]
[1772482827261,1.907,2036.4,2035.8,0.001]
[1772482827458,0.48155647,2037.1,2035.8,0.001]
[1772482827783,1.907,2036.7,2035.8,0.001]
[1772482828449,1.22741555,2036.8,2035.8,0.001]
[1772482828786,1.907,2037.0,2035.8,0.4573892]
[1772482829077,1.22735529,2036.9,2035.9,1.22795815]
[1772482829286,1.22726489,2037.1,2036.2,0.001]
[1772482829490,0.002,2037.0,2036.2,0.4573892]
[1772482829670,1.22705408,2037.4,2036.4,0.4563892]
[1772482830051,0.002,2037.2,2036.4,0.4563892]
[1772482831260,0.002,2037.2,2036.5,1.68398556]
[1772482831857,0.002,2037.2,2036.2,1.22873467]
[1772482831858,1.904,2037.1,2036.2,1.22873467]
[1772482832479,0.002,2037.2,2036.3,0.4563892]
[1772482833054,0.002,2037.2,2036.2,1.68512387]
[1772482833374,1.22917455,2037.2,2036.2,1.68512387]
[1772482834068,0.002,2037.2,2036.3,0.4563892]
[1772482835149,0.002,2037.2,2036.6,1.68392528]
[1772482835353,0.002,2037.5,2036.7,0.4563892]
[1772482836196,0.002,2037.5,2036.6,1.22753608]
[1772482836563,2.41119688,2037.1,2036.2,0.001]
[1772482836867,1.9,2037.0,2036.2,1.2287729]
[1772482837071,0.48155647,2037.3,2036.2,1.2287729]
[1772482837379,1.22735529,2036.9,2036.2,0.001]
[1772482839380,4.90824416,2037.4,2036.2,0.4573892]
[1772482839567,6.80724416,2037.4,2036.2,0.4573892]
[1772482839766,4.90824416,2037.4,2036.2,0.4573892]
[1772482840088,1.22705408,2037.4,2036.4,0.4563892]
[1772482841286,1.22705408,2037.4,2036.5,1.22759636]
[1772482842178,1.22705408,2037.4,2036.5,1.22859636]
[1772482842495,0.002,2037.5,2036.7,0.4563892]
[1772482843491,5.5234023,2038.2,2037.3,0.4563892]
[1772482843492,0.002,2037.7,2037.3,0.4563892]
[1772482843798,0.46590213,2038.2,2037.3,0.4563892]
[1772482844084,2.33135436,2038.8,2037.8,2.41181704]
[1772482844085,1.22825761,2038.8,2037.8,2.41181704]
[1772482844865,1.70981408,2038.8,2037.6,0.4563892]
[1772482845069,0.48155647,2038.7,2037.2,2.1563892]
[1772482845305,1.22633179,2038.6,2037.3,1.22711431]
[1772482845499,3.12133179,2038.6,2037.3,1.68350351]
[1772482845799,3.60288826,2038.6,2037.3,1.68350351]
[1772482846796,1.70788826,2038.6,2037.3,1.68350351]
[1772482847211,1.894,2038.5,2037.3,1.68350351]
[1772482847703,1.22645211,2038.4,2037.3,1.68350351]
[1772482849204,1.22642651,2038.5,2037.5,2.86933889]
[1772482849385,1.22826129,2038.8,2037.7,2.86933889]
[1772482849585,3.12226129,2038.8,2037.8,1.22681322]
[1772482850695,1.22826129,2038.8,2037.9,0.45752185]
[1772482851214,1.22821256,2038.8,2037.9,0.45752185]
[1772482851627,0.002,2038.8,2038.0,1.22669283]
[1772482853406,0.002,2038.8,2038.0,1.68421468]
[1772482853616,0.002,2039.0,2038.3,2.86933889]
[1772482854707,0.002,2039.0,2038.4,0.45752185]
[1772482855113,0.002,2039.0,2038.2,1.22657246]
[1772482855800,0.002,2038.6,2038.2,1.22657246]
[1772482856301,0.002,2038.8,2038.2,4.09591135]
[1772482857313,0.002,2038.8,2038.3,0.45752185]
[1772482857903,0.002,2039.0,2038.5,2.41181704]
[1772482858209,0.002,2039.0,2038.4,1.68397396]
[1772482858784,0.002,2039.0,2038.3,2.92546588]
[1772482859014,0.002,2039.0,2038.1,1.22663264]
[1772482860219,0.48196569,2038.9,2037.7,4.90731342]
[1772482860514,0.48196569,2038.5,2037.5,0.001]
[1772482860919,0.48196569,2038.5,2037.5,1.22797522]
[1772482861118,0.48196569,2038.5,2037.5,3.63357523]
[1772482861495,0.48196569,2038.4,2037.5,0.001]
[1772482862120,0.48196569,2038.4,2037.3,0.001]
[1772482862121,0.48196569,2038.2,2037.3,0.001]
[1772482862294,0.48196569,2038.2,2037.0,0.001]
[1772482862295,0.48196569,2038.1,2037.0,0.001]
[1772482862495,2.40560001,2038.2,2037.0,0.001]
[1772482862496,0.48196569,2037.9,2037.0,1.22829287]
[1772482862692,1.70847797,2038.3,2037.0,3.63389288]
[1772482862893,4.90604915,2038.6,2037.0,3.63389288]
[1772482862894,1.22633179,2038.6,2037.6,2.40560001]
[1772482863119,1.22633179,2038.6,2037.6,2.86312186]
[1772482863919,1.22633179,2038.6,2037.5,2.40560001]
[1772482864223,0.48196569,2038.5,2037.5,1.22694836]
[1772482864391,0.48196569,2038.5,2037.4,1.22700241]
[1772482864794,0.48196569,2038.5,2037.5,2.40560001]
[1772482865024,0.48196569,2038.5,2037.4,1.22700241]
[1772482865323,0.48196569,2038.5,2037.2,4.90858353]
[1772482865521,0.48196569,2038.2,2037.2,1.22717455]
[1772482865724,2.36196569,2038.2,2037.2,1.22717455]
[1772482866322,1.70859833,2038.1,2037.1,2.92419591]
[1772482866497,0.48196569,2038.0,2037.0,0.001]
[1772482866692,0.48196569,2037.9,2037.0,0.001]
[1772482866940,0.48196569,2037.6,2037.0,0.001]
[1772482867091,2.40560001,2037.7,2037.0,0.001]
[1772482867092,0.48196569,2037.4,2037.0,0.001]
[1772482867504,0.48196569,2037.4,2036.5,0.001]
[1772482868025,2.35996569,2037.4,2036.5,1.22859634]
[1772482868239,1.22711431,2037.3,2036.5,0.001]
[1772482868902,4.11468001,2037.3,2036.5,0.001]
[1772482869108,0.48196569,2037.2,2036.5,0.001]
[1772482869423,0.48196569,2037.2,2037.0,0.001]
[1772482869802,0.48196569,2037.2,2036.5,0.001]
[1772482869803,0.48196569,2037.2,2036.7,0.001]
[1772482870004,1.22711431,2037.3,2036.5,0.001]
[1772482870005,0.48196569,2037.0,2036.5,0.001]
[1772482870323,1.22741555,2036.8,2036.5,0.001]
[1772482871000,1.879,2037.0,2036.5,0.001]
[1772482871410,4.90870136,2037.2,2036.5,0.001]
[1772482871411,6.78770136,2037.2,2036.5,0.001]
[1772482872815,4.90870136,2037.2,2036.5,0.001]
[1772482873004,1.88,2037.1,2036.5,0.001]
[1772482873618,1.88,2037.1,2036.3,0.001]
[1772482873619,0.48196569,2036.9,2036.3,0.001]
[1772482873798,0.48196569,2036.6,2035.8,0.001]
[1772482874007,1.88,2036.5,2035.8,1.22899961]
[1772482874306,1.88,2036.5,2035.8,1.22900727]
[1772482874514,1.22765664,2036.4,2035.8,0.001]
[1772482875216,0.48196569,2037.0,2035.8,0.001]
[1772482875405,3.10735529,2036.9,2036.0,2.86312186]
[1772482876230,3.10735529,2036.9,2036.1,0.48031476]
[1772482876901,3.10735529,2036.9,2036.2,1.22777723]
[1772482877101,1.88,2036.9,2036.2,1.22777723]
[1772482877424,1.88,2036.9,2036.3,0.48031476]
[1772482877616,3.10736693,2036.9,2036.3,0.48031476]
[1772482877810,3.10736693,2036.9,2036.2,1.22777723]
[1772482878541,1.88,2036.9,2036.2,1.70333679]
[1772482878700,1.88,2037.3,2036.3,0.47555956]
[1772482878904,1.879,2037.3,2036.4,1.7032162]
[1772482879746,1.879,2037.3,2036.4,1.22765664]
[1772482879955,0.47572899,2037.2,2036.0,1.70339709]
[1772482880103,0.47572899,2037.2,2036.1,1.22783753]
[1772482880610,0.47572899,2037.0,2035.8,0.001]
[1772482880818,0.47572899,2036.5,2035.8,0.001]
[1772482881015,1.878,2036.4,2035.7,0.001]
[1772482881447,2.17610801,2036.5,2035.7,0.001]
[1772482881606,1.878,2036.3,2036.2,0.001]
[1772482881836,1.878,2036.3,2035.7,0.001]
[1772482882037,1.878,2036.3,2036.0,0.001]
[1772482882038,0.47572899,2036.2,2036.0,0.001]
[1772482882261,1.70037902,2036.5,2035.5,0.001]
[1772482882467,1.878,2036.1,2035.5,0.001]
[1772482883035,1.22789783,2036.0,2035.5,0.001]
[1772482883241,1.70362682,2036.0,2035.5,0.001]
[1772482883570,0.47572899,2035.9,2035.3,0.001]
[1772482883870,1.878,2035.8,2035.3,0.001]
[1772482884735,1.22789783,2036.0,2035.3,0.001]
[1772482884736,1.878,2035.9,2035.3,0.001]
[1772482885143,1.878,2036.2,2035.3,0.001]
[1772482885545,1.22765664,2036.4,2035.3,0.001]
[1772482885893,7.0867346,2036.5,2035.4,0.47555956]
[1772482885894,1.70037902,2036.5,2035.4,0.47555956]
[1772482886561,1.70037902,2036.5,2035.7,0.47555956]
[1772482886762,2.92798199,2036.5,2035.7,0.47555956]
[1772482886964,2.92798199,2036.5,2035.3,0.47655956]
[1772482886965,3.40371098,2036.5,2035.3,0.47655956]
[1772482887143,3.40371098,2036.5,2035.4,1.2282598]
[1772482887446,3.40371098,2036.5,2035.3,1.70483162]
[1772482887646,1.878,2036.4,2035.3,1.70483162]
[1772482887860,4.80598199,2036.5,2035.4,0.47555956]
[1772482888949,4.80598199,2036.5,2035.8,0.47555956]
[1772482888950,1.59212282,2036.5,2035.8,0.47555956]
[1772482889151,1.22947907,2036.7,2035.9,1.70351771]
[1772482890141,1.22947907,2036.7,2035.9,1.22795815]
[1772482890374,1.22947907,2036.7,2035.6,1.22813912]
[1772482890579,1.70520806,2036.7,2035.6,1.22813912]
[1772482890881,1.877,2036.6,2035.6,1.22813912]
[1772482891042,1.22759636,2036.5,2035.6,1.22813912]
[1772482891576,1.22952151,2036.7,2035.7,2.88724621]
[1772482893149,1.22952151,2036.7,2035.8,1.22801846]
[1772482894245,1.7052505,2036.7,2035.5,4.91259063]
[1772482894975,1.875,2036.6,2035.9,0.001]
[1772482895151,1.22759636,2036.5,2035.9,0.001]
[1772482898479,1.22756767,2036.6,2035.9,0.001]
[1772482898671,3.10548251,2036.7,2035.9,0.001]
[1772482899190,0.47572899,2036.5,2035.9,0.001]
[1772482899352,2.91375985,2036.4,2035.9,0.001]
[1772482899552,0.47572899,2036.5,2035.9,0.001]
[1772482900258,1.876,2036.5,2035.9,0.001]
[1772482900766,1.22765664,2036.4,2035.9,0.001]
[1772482902664,3.10353608,2036.6,2035.9,0.001]
[1772482903296,3.10354276,2036.6,2035.9,0.001]
[1772482904164,1.22952063,2036.7,2035.9,0.001]
[1772482904373,0.002,2036.7,2035.9,0.47655956]
[1772482904571,1.22948273,2036.7,2035.9,0.47655956]
[1772482904777,0.002,2036.7,2035.9,0.001]
[1772482904963,0.47572899,2036.5,2035.9,0.001]
[1772482905279,3.39200237,2036.4,2035.9,0.001]
[1772482905486,2.91627338,2036.3,2035.9,0.001]
[1772482906660,0.002,2036.7,2035.9,0.001]
[1772482906864,1.22765664,2036.4,2035.9,0.001]
[1772482909086,0.002,2036.5,2035.9,0.001]
[1772482909284,1.879,2036.5,2035.9,0.001]
[1772482909487,2.91943531,2036.4,2035.9,0.001]
[1772482910785,2.91943531,2036.4,2035.7,0.001]
[1772482910786,0.47505629,2036.3,2035.7,0.001]
[1772482910989,2.91943531,2036.2,2035.7,0.001]
[1772482911382,1.22783753,2036.1,2035.7,0.001]
[1772482911686,1.878,2036.0,2035.7,0.001]
[1772482911986,1.22777901,2036.2,2035.7,0.001]
[1772482912166,4.79765107,2036.1,2035.7,0.001]
[1772482912370,1.878,2036.1,2035.7,0.001]
[1772482913491,3.10588187,2036.1,2035.7,0.001]
[1772482913690,1.878,2036.1,2035.7,0.001]
[1772482913987,1.879,2036.1,2035.7,0.001]
[1772482914157,1.22775543,2036.3,2035.7,0.001]
[1772482914358,4.80279103,2036.2,2035.7,0.001]
[1772482914561,2.92379103,2036.1,2035.7,0.001]
[1772482914862,3.39884732,2036.1,2035.7,0.001]
[1772482915062,2.92379103,2036.0,2035.7,0.001]
[1772482915590,1.22795815,2035.9,2035.7,0.001]
[1772482915899,4.80379103,2035.8,2035.7,0.001]
[1772482916059,2.92379103,2035.8,2035.7,0.001]
[1772482916260,1.22787722,2036.1,2035.7,0.001]
[1772482916461,4.80708587,2036.0,2035.7,0.001]
[1772482916764,1.881,2036.0,2035.7,0.001]
[1772482918088,1.882,2036.3,2035.7,0.001]
[1772482918259,2.9260521,2036.2,2035.7,0.001]
[1772482918456,1.882,2036.3,2035.7,0.001]
[1772482919497,0.002,2036.5,2035.8,0.48942788]
[1772482919697,1.22959923,2036.5,2035.8,0.48942788]
[1772482920000,4.15266006,2036.4,2035.9,1.22795815]
[1772482920304,0.002,2036.5,2035.9,1.22895815]
[1772482920506,0.002,2036.5,2036.0,0.48942788]
[1772482921072,1e-08,2036.6,2036.0,0.48942788]
[1772482921268,0.002,2036.7,2036.0,0.48942788]
[1772482921600,0.002,2036.7,2035.9,1.22895815]
[1772482921601,1.22948047,2036.7,2035.9,1.22895815]
[1772482921900,0.002,2036.7,2035.9,1.71838603]
[1772482922275,0.47705629,2036.7,2035.9,1.22895815]
[1772482922880,0.47705629,2036.7,2035.9,1.22895169]
[1772482923078,0.002,2036.7,2035.9,1.22895169]
[1772482923399,0.47705629,2036.7,2035.9,1.22895386]
[1772482923769,0.002,2036.7,2035.9,1.71838174]
[1772482923977,1.7045321,2036.7,2036.0,1.22789783]
[1772482924898,0.002,2036.7,2036.0,1.22789783]
[1772482925105,0.002,2036.7,2036.1,0.48942788]
[1772482926031,0.002,2036.9,2036.3,0.48942788]
[1772482926310,0.002,2037.0,2036.4,3.86727422]
[1772482926879,0.002,2037.0,2036.2,3.72900846]
[1772482926880,0.002,2037.0,2036.2,4.21843634]
[1772482927082,0.002,2037.0,2036.4,3.37784634]
[1772482927505,1.22930067,2037.0,2036.2,3.72900846]
[1772482928319,0.002,2037.0,2036.2,3.72900846]
[1772482928522,0.002,2037.0,2036.4,0.48942788]
[1772482929580,0.002,2037.2,2036.7,0.48942788]
[1772482930100,0.42692695,2037.6,2037.0,1.22729504]
[1772482930486,1.6538656,2037.6,2037.0,1.22729504]
[1772482930683,1.65386405,2037.6,2037.0,1.22729504]
[1772482930884,0.42692695,2037.6,2037.0,4.60514138]
[1772482931080,1.65387617,2037.6,2037.0,4.60514138]
[1772482931311,0.42692695,2037.6,2037.0,5.09456926]
[1772482932126,5.38209213,2037.9,2036.8,1.22741555]
[1772482932492,0.002,2037.4,2036.8,3.38284343]
[1772482933021,0.002,2038.2,2037.4,0.48942788]
[1772482933191,0.002,2037.9,2037.4,0.48942788]
[1772482933586,0.002,2038.4,2037.6,3.37784634]
[1772482933823,0.002,2038.4,2037.9,3.37784634]
[1772482933995,1.2283171,2038.7,2037.8,1.666]
[1772482933996,1.22827433,2038.7,2037.8,1.666]
[1772482934195,0.002,2038.7,2037.9,1.22675303]
[1772482934698,0.002,2038.7,2037.7,1.71625579]
[1772482934926,0.47705629,2038.7,2037.7,1.22686019]
[1772482935420,0.002,2038.7,2037.8,0.48942788]
[1772482936320,0.002,2038.7,2037.9,1.22675303]
[1772482936699,0.002,2038.7,2037.9,4.60459937]
[1772482937212,0.002,2038.7,2037.9,1.22675303]
[1772482937392,0.46621417,2038.7,2037.7,1.22686309]
[1772482937593,0.46621417,2038.7,2037.3,1.22709405]
[1772482938523,0.46421417,2038.5,2037.3,1.22709405]
[1772482938701,2.33221417,2038.4,2037.3,1.22709405]
[1772482939023,2.33221417,2038.4,2036.8,1.72212799]
[1772482939024,0.46421417,2038.3,2036.8,1.72212799]
[1772482939396,0.46421417,2038.3,2037.0,3.87260812]
[1772482939397,1.867,2038.2,2037.0,3.87260812]
[1772482939597,0.46421417,2038.3,2037.1,0.49476178]
[1772482939819,0.46421417,2038.2,2036.8,3.38612799]
[1772482940404,0.46421417,2038.0,2036.8,3.38612799]
[1772482940810,0.46171817,2038.0,2036.8,3.38612799]
[1772482941927,0.46171817,2038.0,2037.0,3.37784634]
[1772482942634,1.6909672,2037.9,2037.0,3.37784634]
[1772482942801,1.6909672,2037.9,2036.6,4.91014106]
[1772482942802,0.46421417,2037.8,2036.7,1.22743181]
[1772482942997,2.32921417,2037.8,2036.6,3.38526049]
[1772482943228,0.46421417,2037.7,2036.6,3.38526049]
[1772482944095,0.46421417,2037.7,2036.6,1.663]
[1772482944327,0.46421417,2037.5,2036.3,1.664]
[1772482944627,1.22705408,2037.4,2036.3,2.89169882]
[1772482944826,1.22705408,2037.4,2037.0,0.001]
[1772482945336,1.22703848,2037.5,2037.0,0.001]
[1772482946023,4.43351947,2037.9,2037.0,0.001]
[1772482946024,1.69101535,2037.9,2037.0,0.001]
[1772482947129,0.46421417,2037.8,2037.0,0.001]
[1772482949238,1.22687343,2037.7,2037.0,0.001]
[1772482949809,0.46421417,2037.6,2037.0,0.001]
[1772482950907,1.862,2037.6,2037.0,0.001]
[1772482951114,0.46421417,2037.5,2037.0,0.001]
[1772482951434,4.90772583,2037.7,2037.0,0.001]
[1772482951808,5.37194,2037.7,2037.0,0.001]
[1772482952736,1.22675303,2038.0,2037.0,0.49576178]
[1772482953126,0.46421417,2037.9,2037.0,0.001]
[1772482953812,1.22681322,2037.8,2037.0,3.37884634]
[1772482954108,1.22681322,2037.8,2037.0,3.87360812]
[1772482955415,3.55172645,2038.3,2037.3,3.37784634]
[1772482955936,1.69072645,2038.3,2037.4,1.22705408]
[1772482956936,0.46421417,2038.2,2037.0,0.001]
[1772482957178,0.46421417,2038.2,2037.0,1.22828573]
[1772482957343,0.46421417,2038.1,2037.0,0.001]
[1772482957739,0.46421417,2037.9,2037.2,0.001]
[1772482957974,1.22669283,2038.0,2037.2,0.001]
[1772482957975,0.46421417,2037.7,2037.2,0.001]
[1772482960151,0.46421417,2037.5,2037.0,0.001]
[1772482960348,0.46421417,2037.4,2037.0,0.001]
[1772482960941,2.32221417,2037.4,2037.0,0.001]
[1772482961578,1.22693364,2037.6,2037.0,0.001]
[1772482961942,1.69111829,2037.7,2037.0,2.41080858]
[1772482962271,1.69111829,2037.7,2037.0,3.63805539]
[1772482962445,6.76730331,2037.8,2037.0,3.63805539]
[1772482962446,0.002,2037.8,2037.3,2.40980858]
[1772482963372,0.002,2038.0,2037.6,2.40980858]